[Event "*** Titled Tuesday Blitz"]
[Site "Chess.com"]
[Date "2020.11.10"]
[Round "8"]
[White "Unknown_IM"]
[Black "Ajedrez_con_German"]
[Result "1-0"]
[WhiteElo "2394"]
[BlackElo "2535"]
[TimeControl "180+1"]
[EndTime "11:34:47 PST"]
[Termination "Unknown_IM won on time"]

1. e4 {[%clk 0:03:00.9]} 1... e6 {[%clk 0:02:59.7]} 2. d4 {[%clk 0:02:59.7]}
2... d5 {[%clk 0:02:56.7]} 3. Bd3 {[%clk 0:02:59.2]} 3... a6 {[%clk 0:02:45.9]}
4. e5 {[%clk 0:02:45]} 4... c5 {[%clk 0:02:43.8]} 5. c3 {[%clk 0:02:45]} 5...
Nc6 {[%clk 0:02:43.7]} 6. Nf3 {[%clk 0:02:44.9]} 6... Qb6 {[%clk 0:02:31.9]} 7.
O-O {[%clk 0:02:42]} 7... cxd4 {[%clk 0:02:26.9]} 8. cxd4 {[%clk 0:02:41.1]}
8... Bd7 {[%clk 0:02:27.6]} 9. Be2 {[%clk 0:02:37.3]} 9... Nge7 {[%clk
0:02:25.2]} 10. Nc3 {[%clk 0:02:34.5]} 10... Nf5 {[%clk 0:02:24.9]} 11. Na4
{[%clk 0:02:33.6]} 11... Qa7 {[%clk 0:02:22.5]} 12. Be3 {[%clk 0:02:32.2]} 12...
b5 {[%clk 0:02:16.9]} 13. Nc3 {[%clk 0:02:30.2]} 13... Be7 {[%clk 0:02:12.9]}
14. Bd3 {[%clk 0:02:26.6]} 14... Nxe3 {[%clk 0:02:05.6]} 15. fxe3 {[%clk
0:02:26.2]} 15... O-O {[%clk 0:02:00.8]} 16. Ne2 {[%clk 0:02:23.2]} 16... Rac8
{[%clk 0:01:48.2]} 17. Nf4 {[%clk 0:02:19.4]} 17... Nb4 {[%clk 0:01:37.5]} 18.
Bb1 {[%clk 0:02:16]} 18... Qc7 {[%clk 0:01:35.9]} 19. a3 {[%clk 0:02:08.9]}
19... Nc2 {[%clk 0:01:31]} 20. Qd3 {[%clk 0:02:06.8]} 20... Qc4 {[%clk
0:01:17.3]} 21. Bxc2 {[%clk 0:01:41.2]} 21... Qxc2 {[%clk 0:01:15.3]} 22. Qxc2
{[%clk 0:01:42.1]} 22... Rxc2 {[%clk 0:01:15.9]} 23. Rac1 {[%clk 0:01:42]} 23...
Rfc8 {[%clk 0:01:13]} 24. Rxc2 {[%clk 0:01:42]} 24... Rxc2 {[%clk 0:01:12.9]}
25. Rf2 {[%clk 0:01:41.9]} 25... Rc1+ {[%clk 0:01:06.4]} 26. Rf1 {[%clk
0:01:41.3]} 26... Rc2 {[%clk 0:00:56]} 27. Rf2 {[%clk 0:01:38.1]} 27... Rc1+
{[%clk 0:00:50.6]} 28. Rf1 {[%clk 0:01:37.2]} 28... Rxf1+ {[%clk 0:00:51.1]} 29.
Kxf1 {[%clk 0:01:37.1]} 29... b4 {[%clk 0:00:51.6]} 30. axb4 {[%clk 0:01:36.5]}
30... Bxb4 {[%clk 0:00:49.8]} 31. Ke2 {[%clk 0:01:34.8]} 31... Bb5+ {[%clk
0:00:48.8]} 32. Kd1 {[%clk 0:01:34.6]} 32... a5 {[%clk 0:00:41.8]} 33. h4 {[%clk
0:01:28.5]} 33... a4 {[%clk 0:00:39]} 34. Kc1 {[%clk 0:01:20.2]} 34... Bc4
{[%clk 0:00:32.4]} 35. h5 {[%clk 0:01:11.1]} 35... h6 {[%clk 0:00:31.4]} 36. Nd2
{[%clk 0:01:07.8]} 36... Bb5 {[%clk 0:00:23.1]} 37. Kc2 {[%clk 0:01:04.7]} 37...
Kf8 {[%clk 0:00:22.4]} 38. Nb1 {[%clk 0:01:02.5]} 38... Bc4 {[%clk 0:00:18.1]}
39. Na3 {[%clk 0:01:01.9]} 39... Bb3+ {[%clk 0:00:17.4]} 40. Kc1 {[%clk
0:01:01.3]} 40... Ke7 {[%clk 0:00:16.2]} 41. Nd3 {[%clk 0:01:00.5]} 41... Bxa3
{[%clk 0:00:14.7]} 42. bxa3 {[%clk 0:01:00.3]} 42... Bc4 {[%clk 0:00:13.7]} 43.
Nc5 {[%clk 0:00:57.8]} 43... Bf1 {[%clk 0:00:12]} 44. g3 {[%clk 0:00:56.8]}
44... Be2 {[%clk 0:00:11.9]} 45. Nxa4 {[%clk 0:00:56.1]} 45... Bxh5 {[%clk
0:00:12.2]} 46. Nc3 {[%clk 0:00:56]} 46... Bf3 {[%clk 0:00:10.3]} 47. Kd2 {[%clk
0:00:55.8]} 47... g5 {[%clk 0:00:10.1]} 48. Ke1 {[%clk 0:00:51.9]} 48... h5
{[%clk 0:00:09.7]} 49. Kf2 {[%clk 0:00:50.9]} 49... Bg4 {[%clk 0:00:10]} 50. e4
{[%clk 0:00:49.8]} 50... dxe4 {[%clk 0:00:05.8]} 51. Nxe4 {[%clk 0:00:49.4]}
51... h4 {[%clk 0:00:04.5]} 52. Nxg5 {[%clk 0:00:49]} 52... hxg3+ {[%clk
0:00:02.6]} 53. Kxg3 {[%clk 0:00:48.6]} 53... Bf5 {[%clk 0:00:03.5]} 54. Kf4
{[%clk 0:00:48.3]} 54... Bg6 {[%clk 0:00:03.7]} 55. Ne4 {[%clk 0:00:47.2]} 55...
Kd7 {[%clk 0:00:03.1]} 56. Nc3 {[%clk 0:00:44.5]} 56... Kc6 {[%clk 0:00:03.1]}
57. Kg5 {[%clk 0:00:43.2]} 57... Kb6 {[%clk 0:00:02]} 58. Kf6 {[%clk 0:00:42.8]}
58... Kc6 {[%clk 0:00:02.7]} 59. a4 {[%clk 0:00:38.5]} 59... Kb6 {[%clk
0:00:03.2]} 60. d5 {[%clk 0:00:38.4]} 60... exd5 {[%clk 0:00:03.2]} 61. Nxd5+
{[%clk 0:00:35.1]} 61... Ka5 {[%clk 0:00:03.4]} 62. Nc3 {[%clk 0:00:30.5]} 62...
Kb4 {[%clk 0:00:03.5]} 63. e6 {[%clk 0:00:30.3]} 63... fxe6 {[%clk 0:00:02.7]}
64. Kxg6 {[%clk 0:00:29.9]} 64... e5 {[%clk 0:00:03.3]} 65. Kf5 {[%clk
0:00:30.1]} 1-0

[Event "*** Titled Tuesday Blitz"]
[Site "Chess.com"]
[Date "2020.11.10"]
[Round "8"]
[White "PlotnikovPavel"]
[Black "Sofiia_Hryzlova"]
[Result "0-1"]
[WhiteElo "2445"]
[BlackElo "2314"]
[TimeControl "180+1"]
[EndTime "11:34:47 PST"]
[Termination "Sofiia_Hryzlova won on time"]

1. e4 {[%clk 0:03:00.9]} 1... c5 {[%clk 0:02:43.9]} 2. Nc3 {[%clk 0:02:58.3]}
2... a6 {[%clk 0:02:40.3]} 3. Nge2 {[%clk 0:02:54.6]} 3... Nc6 {[%clk
0:02:34.8]} 4. d4 {[%clk 0:02:54.4]} 4... cxd4 {[%clk 0:02:34.9]} 5. Nxd4 {[%clk
0:02:55.3]} 5... Nf6 {[%clk 0:02:32.8]} 6. Be3 {[%clk 0:02:52.7]} 6... d6 {[%clk
0:02:31.5]} 7. Qf3 {[%clk 0:02:49.4]} 7... Ne5 {[%clk 0:02:22.9]} 8. Qg3 {[%clk
0:02:43.3]} 8... h5 {[%clk 0:02:19.8]} 9. h4 {[%clk 0:02:36.7]} 9... Neg4 {[%clk
0:02:13.5]} 10. O-O-O {[%clk 0:02:30.9]} 10... Bd7 {[%clk 0:02:01]} 11. Bg5
{[%clk 0:01:39.2]} 11... b5 {[%clk 0:01:48.1]} 12. Nd5 {[%clk 0:01:30.4]} 12...
Rc8 {[%clk 0:01:35.5]} 13. Bd3 {[%clk 0:00:32.3]} 13... Qa5 {[%clk 0:01:23]} 14.
Kb1 {[%clk 0:00:28]} 14... e6 {[%clk 0:01:17]} 15. Bd2 {[%clk 0:00:20.8]} 15...
exd5 {[%clk 0:01:08.3]} 16. Bxa5 {[%clk 0:00:19.1]} 16... dxe4 {[%clk
0:01:06.6]} 17. Rhe1 {[%clk 0:00:17.8]} 17... d5 {[%clk 0:01:05.6]} 18. f3
{[%clk 0:00:18]} 18... Bc5 {[%clk 0:00:57.8]} 19. Nb3 {[%clk 0:00:12.2]} 19...
Bf2 {[%clk 0:00:53.3]} 20. Qd6 {[%clk 0:00:11.7]} 20... Bxe1 {[%clk 0:00:47]}
21. Rxe1 {[%clk 0:00:11.3]} 21... Nf2 {[%clk 0:00:42.9]} 22. Bb4 {[%clk
0:00:09.6]} 22... Kd8 {[%clk 0:00:33.6]} 23. Qe7+ {[%clk 0:00:09.1]} 23... Kc7
{[%clk 0:00:33.4]} 24. Ba5+ {[%clk 0:00:10]} 24... Kb7 {[%clk 0:00:29.9]} 25.
Nc5+ {[%clk 0:00:09]} 25... Kc6 {[%clk 0:00:27.3]} 26. fxe4 {[%clk 0:00:09]}
26... Rhe8 {[%clk 0:00:24.4]} 27. Qxf7 {[%clk 0:00:08.8]} 27... Kxc5 {[%clk
0:00:20.6]} 28. e5 {[%clk 0:00:08.9]} 28... N6e4 {[%clk 0:00:18.6]} 29. b4+
{[%clk 0:00:06.1]} 29... Kc6 {[%clk 0:00:18.4]} 30. Qg6+ {[%clk 0:00:04.6]}
30... Re6 {[%clk 0:00:18.2]} 31. Qxg7 {[%clk 0:00:03.3]} 31... Nxd3 {[%clk
0:00:17.4]} 32. cxd3 {[%clk 0:00:03.4]} 32... Nc3+ {[%clk 0:00:16.6]} 33. Kb2
{[%clk 0:00:04]} 33... d4 {[%clk 0:00:16.8]} 34. Rc1 {[%clk 0:00:04.7]} 34...
Rce8 {[%clk 0:00:16.6]} 35. Qg3 {[%clk 0:00:03.8]} 35... Rxe5 {[%clk 0:00:16.3]}
36. Qf3+ {[%clk 0:00:04.7]} 36... Rd5 {[%clk 0:00:13.6]} 37. Qf6+ {[%clk
0:00:04.5]} 37... Re6 {[%clk 0:00:13]} 38. Qd8 {[%clk 0:00:04.7]} 38... Re2+
{[%clk 0:00:12.5]} 39. Kb3 {[%clk 0:00:04.9]} 39... Kd6 {[%clk 0:00:10.7]} 40.
Bc7+ {[%clk 0:00:04.1]} 40... Ke6 {[%clk 0:00:09.7]} 41. Qg8+ {[%clk 0:00:02.7]}
41... Ke7 {[%clk 0:00:09.2]} 42. Qg7+ {[%clk 0:00:03]} 42... Ke6 {[%clk
0:00:09.1]} 43. Qg8+ {[%clk 0:00:03.3]} 43... Ke7 {[%clk 0:00:09.1]} 44. Qh7+
{[%clk 0:00:03]} 44... Ke6 {[%clk 0:00:08.2]} 45. Qxh5 {[%clk 0:00:03.6]} 45...
Rxh5 {[%clk 0:00:07.4]} 46. g4 {[%clk 0:00:03.1]} 46... Rxh4 {[%clk 0:00:07.5]}
47. Rg1 {[%clk 0:00:04]} 47... Re1 {[%clk 0:00:06]} 48. Rxe1+ {[%clk 0:00:03.8]}
48... Kd5 {[%clk 0:00:06.1]} 49. Re5+ {[%clk 0:00:03.2]} 49... Kc6 {[%clk
0:00:06.6]} 50. Bd8 {[%clk 0:00:04.1]} 50... Rxg4 {[%clk 0:00:06.4]} 51. Rc5+
{[%clk 0:00:05]} 51... Kd6 {[%clk 0:00:05.9]} 52. Bc7+ {[%clk 0:00:04.9]} 52...
Ke7 {[%clk 0:00:05.3]} 53. Re5+ {[%clk 0:00:05.5]} 53... Be6+ {[%clk 0:00:06.2]}
54. Kc2 {[%clk 0:00:02.7]} 54... Kd7 {[%clk 0:00:06.5]} 55. Kc1 {[%clk
0:00:03.3]} 55... Rg1+ {[%clk 0:00:06.5]} 56. Kc2 {[%clk 0:00:03.2]} 56... Rg2+
{[%clk 0:00:07.4]} 57. Kc1 {[%clk 0:00:02.7]} 57... Rxa2 {[%clk 0:00:07.2]} 58.
Rh5 {[%clk 0:00:01.3]} 58... Rg2 {[%clk 0:00:07.2]} 0-1

[Event "*** Titled Tuesday Blitz"]
[Site "Chess.com"]
[Date "2020.11.10"]
[Round "8"]
[White "mbojan"]
[Black "kirillshevchenko"]
[Result "1-0"]
[WhiteElo "2680"]
[BlackElo "2848"]
[TimeControl "180+1"]
[EndTime "11:34:48 PST"]
[Termination "mbojan won by resignation"]

1. g3 {[%clk 0:03:00.9]} 1... Nf6 {[%clk 0:02:58.2]} 2. Bg2 {[%clk 0:03:00.9]}
2... g6 {[%clk 0:02:58.3]} 3. d3 {[%clk 0:03:01.2]} 3... Bg7 {[%clk 0:02:58.6]}
4. Nd2 {[%clk 0:03:01.6]} 4... O-O {[%clk 0:02:58.6]} 5. e4 {[%clk 0:03:01.6]}
5... e5 {[%clk 0:02:56]} 6. Nh3 {[%clk 0:02:59.3]} 6... d5 {[%clk 0:02:54.7]} 7.
O-O {[%clk 0:02:58.5]} 7... Nc6 {[%clk 0:02:50.7]} 8. f3 {[%clk 0:02:54.4]} 8...
Be6 {[%clk 0:02:44.3]} 9. Nf2 {[%clk 0:02:52.9]} 9... a5 {[%clk 0:02:38.7]} 10.
a4 {[%clk 0:02:50.8]} 10... Qd7 {[%clk 0:02:32]} 11. Re1 {[%clk 0:02:21.1]}
11... Rad8 {[%clk 0:02:31.1]} 12. c3 {[%clk 0:02:12.4]} 12... b6 {[%clk
0:02:25.7]} 13. Qe2 {[%clk 0:02:08]} 13... Nh5 {[%clk 0:02:16.4]} 14. Nf1 {[%clk
0:02:04.5]} 14... f5 {[%clk 0:01:53.7]} 15. Bg5 {[%clk 0:01:54.9]} 15... Nf6
{[%clk 0:01:51.6]} 16. exf5 {[%clk 0:01:21.1]} 16... Bxf5 {[%clk 0:01:44.8]} 17.
Ne3 {[%clk 0:01:19.9]} 17... Be6 {[%clk 0:01:45.2]} 18. Neg4 {[%clk 0:01:18.1]}
18... Nxg4 {[%clk 0:01:30.6]} 19. Nxg4 {[%clk 0:01:05.2]} 19... Rde8 {[%clk
0:01:30.9]} 20. Nh6+ {[%clk 0:00:57]} 20... Kh8 {[%clk 0:01:30.6]} 21. Rad1
{[%clk 0:00:53.9]} 21... d4 {[%clk 0:01:15.2]} 22. c4 {[%clk 0:00:52.3]} 22...
Nb4 {[%clk 0:00:55.5]} 23. b3 {[%clk 0:00:35.3]} 23... Na6 {[%clk 0:00:54.4]}
24. Ng4 {[%clk 0:00:34.3]} 24... Bf5 {[%clk 0:00:51.8]} 25. Nf2 {[%clk
0:00:33.3]} 25... Nc5 {[%clk 0:00:51.6]} 26. Rb1 {[%clk 0:00:32.8]} 26... h6
{[%clk 0:00:29.3]} 27. Bc1 {[%clk 0:00:32.5]} 27... h5 {[%clk 0:00:28.8]} 28.
Ba3 {[%clk 0:00:31]} 28... Bh6 {[%clk 0:00:24.9]} 29. Bxc5 {[%clk 0:00:26.5]}
29... bxc5 {[%clk 0:00:24.9]} 30. Ne4 {[%clk 0:00:26.7]} 30... Be3+ {[%clk
0:00:24.6]} 31. Kh1 {[%clk 0:00:27]} 31... Qe7 {[%clk 0:00:23]} 32. Qf1 {[%clk
0:00:19.5]} 32... Rd8 {[%clk 0:00:22.7]} 33. Rbd1 {[%clk 0:00:17.6]} 33... Kg7
{[%clk 0:00:22.2]} 34. Bh3 {[%clk 0:00:16.7]} 34... Rh8 {[%clk 0:00:15.9]} 35.
Qg2 {[%clk 0:00:16.6]} 35... Rdf8 {[%clk 0:00:11.4]} 36. Bxf5 {[%clk 0:00:09.4]}
36... gxf5 {[%clk 0:00:11.2]} 37. Nd2 {[%clk 0:00:10.1]} 37... Kh7 {[%clk
0:00:05.4]} 38. Nf1 {[%clk 0:00:10.4]} 38... f4 {[%clk 0:00:06]} 39. gxf4 {[%clk
0:00:09.1]} 39... exf4 {[%clk 0:00:06.3]} 40. Qh3 {[%clk 0:00:09.2]} 40... Qe5
{[%clk 0:00:05.7]} 41. Re2 {[%clk 0:00:08.9]} 41... Rhg8 {[%clk 0:00:05.5]} 42.
Nd2 {[%clk 0:00:05.3]} 42... Rf6 {[%clk 0:00:04.7]} 43. Ne4 {[%clk 0:00:05.7]}
43... Rfg6 {[%clk 0:00:05.2]} 44. Ree1 {[%clk 0:00:06.2]} 44... R8g7 {[%clk
0:00:02.9]} 45. Rf1 {[%clk 0:00:05.2]} 45... Kg8 {[%clk 0:00:03.3]} 46. Rde1
{[%clk 0:00:04.5]} 46... Kf8 {[%clk 0:00:03.5]} 47. Qc8+ {[%clk 0:00:04.4]}
47... Ke7 {[%clk 0:00:03.7]} 48. Qh3 {[%clk 0:00:04]} 48... Kd8 {[%clk
0:00:03.7]} 49. Qh4+ {[%clk 0:00:04.4]} 49... Kc8 {[%clk 0:00:03.7]} 50. Qh3+
{[%clk 0:00:05]} 50... Kb7 {[%clk 0:00:04.3]} 51. Rb1 {[%clk 0:00:05.3]} 51...
Kb6 {[%clk 0:00:04.3]} 52. Qh4 {[%clk 0:00:05.3]} 52... Qf5 {[%clk 0:00:03.3]}
53. Qd8 {[%clk 0:00:04.5]} 53... Qh3 {[%clk 0:00:02.4]} 54. Qb8+ {[%clk
0:00:04.2]} 54... Ka6 {[%clk 0:00:01.9]} 55. Qb5+ {[%clk 0:00:04.3]} 55... Ka7
{[%clk 0:00:02.3]} 56. Qxa5+ {[%clk 0:00:04.5]} 56... Ra6 {[%clk 0:00:02]} 57.
Qxc5+ {[%clk 0:00:04.4]} 57... Kb7 {[%clk 0:00:01.2]} 58. Rg1 {[%clk 0:00:03.4]}
58... Rg2 {[%clk 0:00:01]} 59. Rxg2 {[%clk 0:00:03.6]} 59... Qd7 {[%clk
0:00:01.7]} 60. Qb5+ {[%clk 0:00:03.5]} 60... Rb6 {[%clk 0:00:01.8]} 61. Nc5+
{[%clk 0:00:03.6]} 1-0

[Event "*** Titled Tuesday Blitz"]
[Site "Chess.com"]
[Date "2020.11.10"]
[Round "8"]
[White "yourstrulyme"]
[Black "gumimis"]
[Result "1-0"]
[WhiteElo "2384"]
[BlackElo "2198"]
[TimeControl "180+1"]
[EndTime "11:34:50 PST"]
[Termination "yourstrulyme won by checkmate"]

1. d4 {[%clk 0:03:00.9]} 1... Nf6 {[%clk 0:02:59.1]} 2. Nf3 {[%clk 0:03:01.8]}
2... g6 {[%clk 0:02:58.2]} 3. Bg5 {[%clk 0:03:01.8]} 3... Bg7 {[%clk 0:02:58.1]}
4. Nbd2 {[%clk 0:03:02.4]} 4... O-O {[%clk 0:02:51.3]} 5. c3 {[%clk 0:03:02.9]}
5... b6 {[%clk 0:02:43.5]} 6. e4 {[%clk 0:03:02.8]} 6... Bb7 {[%clk 0:02:42.9]}
7. Bd3 {[%clk 0:03:03.3]} 7... d6 {[%clk 0:02:41.3]} 8. O-O {[%clk 0:03:00.3]}
8... Nbd7 {[%clk 0:02:39.1]} 9. Re1 {[%clk 0:03:00.2]} 9... e5 {[%clk
0:02:37.9]} 10. h3 {[%clk 0:02:57.8]} 10... Re8 {[%clk 0:02:31.1]} 11. a4 {[%clk
0:02:57.7]} 11... h6 {[%clk 0:02:25.8]} 12. Bh4 {[%clk 0:02:56.2]} 12... g5
{[%clk 0:02:25.4]} 13. Bg3 {[%clk 0:02:56]} 13... Nh5 {[%clk 0:02:25.4]} 14.
Nxe5 {[%clk 0:02:44.9]} 14... Nxe5 {[%clk 0:01:52]} 15. Bxe5 {[%clk 0:02:44]}
15... dxe5 {[%clk 0:01:52]} 16. Qxh5 {[%clk 0:02:43.9]} 16... exd4 {[%clk
0:01:52.5]} 17. Bc4 {[%clk 0:02:30.2]} 17... Re7 {[%clk 0:01:36.3]} 18. Rad1
{[%clk 0:02:29.7]} 18... dxc3 {[%clk 0:01:36.6]} 19. Nf3 {[%clk 0:02:28.2]}
19... Qf8 {[%clk 0:01:33.6]} 20. bxc3 {[%clk 0:02:14.4]} 20... Bxc3 {[%clk
0:01:33.9]} 21. Re3 {[%clk 0:02:14.4]} 21... Bg7 {[%clk 0:01:32.9]} 22. Nd4
{[%clk 0:02:04.9]} 22... Rxe4 {[%clk 0:01:27.9]} 23. Rxe4 {[%clk 0:01:56.7]}
23... Bxe4 {[%clk 0:01:22.3]} 24. Qg4 {[%clk 0:01:46.9]} 24... Rd8 {[%clk
0:01:18.7]} 25. Qxe4 {[%clk 0:01:46]} 25... Qc5 {[%clk 0:00:51.7]} 26. Bxf7+
{[%clk 0:01:43.6]} 26... Kxf7 {[%clk 0:00:51.3]} 27. Qe6+ {[%clk 0:01:44.1]}
27... Kf8 {[%clk 0:00:50.9]} 28. Rd3 {[%clk 0:01:44.6]} 28... Rxd4 {[%clk
0:00:48.5]} 29. Rf3+ {[%clk 0:01:33.4]} 29... Rf4 {[%clk 0:00:48.6]} 30. Re3
{[%clk 0:01:30.9]} 30... Qxe3 {[%clk 0:00:10.8]} 31. fxe3 {[%clk 0:01:29.2]}
31... Rf7 {[%clk 0:00:08.8]} 32. e4 {[%clk 0:01:28.3]} 32... Re7 {[%clk
0:00:08.7]} 33. Qc8+ {[%clk 0:01:26.1]} 33... Kf7 {[%clk 0:00:08.7]} 34. Qb7
{[%clk 0:01:25.2]} 34... a5 {[%clk 0:00:08.7]} 35. Kf2 {[%clk 0:01:24.7]} 35...
Be5 {[%clk 0:00:08.2]} 36. Kf3 {[%clk 0:01:24.1]} 36... Bd6 {[%clk 0:00:08.4]}
37. Qd5+ {[%clk 0:01:23.1]} 37... Kg7 {[%clk 0:00:07.4]} 38. Kg4 {[%clk
0:01:23.2]} 38... Re5 {[%clk 0:00:07.1]} 39. Qd4 {[%clk 0:01:22.7]} 39... Kg6
{[%clk 0:00:06.7]} 40. Kf3 {[%clk 0:01:19.5]} 40... h5 {[%clk 0:00:06.7]} 41.
Ke2 {[%clk 0:01:16.3]} 41... h4 {[%clk 0:00:06.8]} 42. Kd3 {[%clk 0:01:15.6]}
42... Rc5 {[%clk 0:00:06.1]} 43. Ke2 {[%clk 0:01:12.6]} 43... Re5 {[%clk
0:00:06.3]} 44. Kf3 {[%clk 0:01:12.4]} 44... Rc5 {[%clk 0:00:06.6]} 45. Kg4
{[%clk 0:01:10.9]} 45... Re5 {[%clk 0:00:06.8]} 46. Qc4 {[%clk 0:01:10.4]} 46...
Rc5 {[%clk 0:00:06.3]} 47. Qg8+ {[%clk 0:01:09.5]} 47... Kf6 {[%clk 0:00:06.3]}
48. Kh5 {[%clk 0:01:04.3]} 48... Re5 {[%clk 0:00:04.9]} 49. Qh7 {[%clk
0:00:54.1]} 49... Ke6 {[%clk 0:00:04.4]} 50. Kg6 {[%clk 0:00:52.7]} 50... Rc5
{[%clk 0:00:02.6]} 51. Qf7+ {[%clk 0:00:49.4]} 51... Ke5 {[%clk 0:00:02.9]} 52.
Kxg5 {[%clk 0:00:48.2]} 52... Kd4+ {[%clk 0:00:03.3]} 53. Kxh4 {[%clk
0:00:47.9]} 53... Kxe4 {[%clk 0:00:03.7]} 54. Qf3+ {[%clk 0:00:46.2]} 54... Ke5
{[%clk 0:00:03.7]} 55. g4 {[%clk 0:00:45.8]} 55... Ke6 {[%clk 0:00:03.1]} 56. g5
{[%clk 0:00:43.9]} 56... Be7 {[%clk 0:00:03.6]} 57. Qg4+ {[%clk 0:00:38.8]}
57... Kf7 {[%clk 0:00:03.7]} 58. Qf4+ {[%clk 0:00:37.5]} 58... Kg7 {[%clk
0:00:04.2]} 59. Qd4+ {[%clk 0:00:35.8]} 59... Kf7 {[%clk 0:00:04.5]} 60. Kh5
{[%clk 0:00:21.3]} 60... Rxg5+ {[%clk 0:00:04]} 61. Kh6 {[%clk 0:00:21.5]} 61...
Rg6+ {[%clk 0:00:04.3]} 62. Kh7 {[%clk 0:00:21.6]} 62... Rf6 {[%clk 0:00:04.3]}
63. Qd5+ {[%clk 0:00:20.9]} 63... Kf8 {[%clk 0:00:04.2]} 64. Qg8# {[%clk
0:00:20.7]} 1-0

[Event "*** Titled Tuesday Blitz"]
[Site "Chess.com"]
[Date "2020.11.10"]
[Round "8"]
[White "lilleper1"]
[Black "Chernobay_Artem"]
[Result "0-1"]
[WhiteElo "2814"]
[BlackElo "2652"]
[TimeControl "180+1"]
[EndTime "11:34:51 PST"]
[Termination "Chernobay_Artem won by resignation"]

1. e4 {[%clk 0:03:00.9]} 1... c5 {[%clk 0:02:59.1]} 2. Nf3 {[%clk 0:03:00.5]}
2... d6 {[%clk 0:02:56.9]} 3. Bb5+ {[%clk 0:02:59.3]} 3... Nd7 {[%clk
0:02:56.3]} 4. O-O {[%clk 0:02:57.4]} 4... a6 {[%clk 0:02:56.2]} 5. Bd3 {[%clk
0:02:54.5]} 5... Ngf6 {[%clk 0:02:52.7]} 6. c3 {[%clk 0:02:54]} 6... b5 {[%clk
0:02:48.5]} 7. Bc2 {[%clk 0:02:52.9]} 7... c4 {[%clk 0:02:45.1]} 8. b3 {[%clk
0:02:39.2]} 8... Bb7 {[%clk 0:02:44.6]} 9. Qe2 {[%clk 0:02:39]} 9... Rc8 {[%clk
0:02:25.8]} 10. Na3 {[%clk 0:02:34.4]} 10... Qc7 {[%clk 0:02:18.9]} 11. bxc4
{[%clk 0:02:24.8]} 11... bxc4 {[%clk 0:02:17.7]} 12. Rb1 {[%clk 0:02:25.1]}
12... Ba8 {[%clk 0:02:09.5]} 13. Rb4 {[%clk 0:02:08.6]} 13... Nb6 {[%clk
0:02:00.6]} 14. e5 {[%clk 0:01:54.8]} 14... Bxf3 {[%clk 0:01:55.8]} 15. Qxf3
{[%clk 0:01:45.5]} 15... dxe5 {[%clk 0:01:55.7]} 16. Ba4+ {[%clk 0:01:20.3]}
16... Nxa4 {[%clk 0:01:36.6]} 17. Rxa4 {[%clk 0:01:21.2]} 17... e4 {[%clk
0:01:36]} 18. Qe2 {[%clk 0:01:16.1]} 18... e6 {[%clk 0:01:34.6]} 19. Rxc4 {[%clk
0:01:14.8]} 19... Bc5 {[%clk 0:01:28.3]} 20. d4 {[%clk 0:01:01.1]} 20... exd3
{[%clk 0:01:28.1]} 21. Qxd3 {[%clk 0:01:01.3]} 21... O-O {[%clk 0:01:27.8]} 22.
Be3 {[%clk 0:00:57.6]} 22... Qd6 {[%clk 0:01:19.2]} 23. Qxd6 {[%clk 0:00:29.3]}
23... Bxd6 {[%clk 0:01:20.1]} 24. Rxc8 {[%clk 0:00:21.6]} 24... Rxc8 {[%clk
0:01:21]} 25. Nb1 {[%clk 0:00:21.9]} 25... Nd5 {[%clk 0:01:17.6]} 26. Bd2 {[%clk
0:00:21.6]} 26... Be5 {[%clk 0:01:12.2]} 27. Rc1 {[%clk 0:00:20.5]} 27... Rc4
{[%clk 0:01:04]} 28. Na3 {[%clk 0:00:20.3]} 28... Ra4 {[%clk 0:01:04]} 29. c4
{[%clk 0:00:20.3]} 29... Nb6 {[%clk 0:00:49.3]} 30. c5 {[%clk 0:00:18.6]} 30...
Nd5 {[%clk 0:00:44.8]} 31. Nc4 {[%clk 0:00:17.9]} 31... Bc7 {[%clk 0:00:44]} 32.
a3 {[%clk 0:00:17.4]} 32... f6 {[%clk 0:00:42.3]} 33. Kf1 {[%clk 0:00:17.4]}
33... e5 {[%clk 0:00:42.5]} 34. Ke2 {[%clk 0:00:16.9]} 34... e4 {[%clk 0:00:43]}
35. f3 {[%clk 0:00:15.8]} 35... f5 {[%clk 0:00:43.2]} 36. fxe4 {[%clk
0:00:15.3]} 36... fxe4 {[%clk 0:00:44.1]} 37. Be3 {[%clk 0:00:13.5]} 37... Kf7
{[%clk 0:00:41.9]} 38. Bd4 {[%clk 0:00:12.4]} 38... g6 {[%clk 0:00:32.7]} 39.
Bg1 {[%clk 0:00:11.1]} 39... Ke6 {[%clk 0:00:32.1]} 40. Rc2 {[%clk 0:00:11.2]}
40... h5 {[%clk 0:00:25.6]} 41. Kd2 {[%clk 0:00:11.4]} 41... Bf4+ {[%clk
0:00:24.9]} 42. Ke2 {[%clk 0:00:10.7]} 42... Bc7 {[%clk 0:00:25.1]} 43. Bd4
{[%clk 0:00:10.3]} 43... Bxh2 {[%clk 0:00:22.8]} 44. Bf2 {[%clk 0:00:08.7]}
44... Bc7 {[%clk 0:00:22.1]} 45. Kd1 {[%clk 0:00:09.1]} 45... g5 {[%clk
0:00:19.9]} 46. Kc1 {[%clk 0:00:08.9]} 46... Bf4+ {[%clk 0:00:13.6]} 47. Kb2
{[%clk 0:00:08.8]} 47... e3 {[%clk 0:00:14.1]} 48. Be1 {[%clk 0:00:09.1]} 48...
Rxc4 {[%clk 0:00:04.4]} 49. Rxc4 {[%clk 0:00:09]} 49... Nc7 {[%clk 0:00:04.3]}
50. Rc2 {[%clk 0:00:07.1]} 50... Kd5 {[%clk 0:00:04.6]} 51. Kb3 {[%clk 0:00:06]}
51... Ne6 {[%clk 0:00:03.8]} 52. c6 {[%clk 0:00:06.2]} 52... Nd4+ {[%clk
0:00:04]} 53. Kb2 {[%clk 0:00:04.1]} 53... Nxc2 {[%clk 0:00:04.3]} 54. Kxc2
{[%clk 0:00:05]} 54... Kxc6 {[%clk 0:00:05]} 55. Kd3 {[%clk 0:00:05.9]} 55...
Kd5 {[%clk 0:00:05.6]} 56. Bc3 {[%clk 0:00:05.8]} 56... g4 {[%clk 0:00:04.9]}
57. Be1 {[%clk 0:00:06.7]} 57... g3 {[%clk 0:00:04.5]} 58. Bc3 {[%clk 0:00:07]}
58... h4 {[%clk 0:00:04.6]} 59. Ke2 {[%clk 0:00:07.6]} 59... Ke4 {[%clk
0:00:04.4]} 60. Kf1 {[%clk 0:00:07.3]} 60... h3 {[%clk 0:00:03.9]} 61. gxh3
{[%clk 0:00:08.2]} 61... Kf3 {[%clk 0:00:04.2]} 62. Be1 {[%clk 0:00:07.7]} 62...
g2+ {[%clk 0:00:02.6]} 63. Kg1 {[%clk 0:00:07.2]} 63... Bg3 {[%clk 0:00:03.3]}
64. Bb4 {[%clk 0:00:04.8]} 64... Bf2+ {[%clk 0:00:02.6]} 0-1